[Event "Titled Tuesday Blitz May 17 Late 2022"]
[White "Rasulov, Vugar"]
[Black "Wagner, Dennis"]
[WhiteFideId "13402390"]
[BlackFideId "24650684"]
[WhiteElo "2560"]
[BlackElo "2355"]
[Result "1-0"]
[Round "06"]
[TimeControl "180+1"]
[Date "2022.05.17"]
[WhiteClock "0:00:39"]
[BlackClock "0:00:02"]

1. d4 {[%clk 0:03:00]}  Nf6 {[%clk 0:02:59]} 2. c4 {[%clk 0:03:01]}  e6 {[%clk 0:02:59]} 3. Nf3 {[%clk 0:03:02]}  d5 {[%clk 0:02:58]} 4. Nc3 {[%clk 0:03:02]}  c5 {[%clk 0:02:59]} 5. cxd5 {[%clk 0:03:01]}  cxd4 {[%clk 0:02:59]} 6. Qxd4 {[%clk 0:02:59]}  exd5 {[%clk 0:02:59]} 7. e4 {[%clk 0:02:53]}  dxe4 {[%clk 0:03:00]} 8. Qxd8+ {[%clk 0:02:54]}  Kxd8 {[%clk 0:03:00]} 9. Ng5 {[%clk 0:02:54]}  Be6 {[%clk 0:03:01]} 10. Nxe6+ {[%clk 0:02:54]}  fxe6 {[%clk 0:03:01]} 11. Bc4 {[%clk 0:02:54]}  Ke7 {[%clk 0:02:58]} 12. Bg5 {[%clk 0:02:50]}  h6 {[%clk 0:02:52]} 13. Bh4 {[%clk 0:02:50]}  g5 {[%clk 0:02:49]} 14. Bg3 {[%clk 0:02:49]}  Nc6 {[%clk 0:02:46]} 15. O-O {[%clk 0:02:44]}  Rd8 {[%clk 0:02:40]} 16. Rfe1 {[%clk 0:02:41]}  Rd4 {[%clk 0:02:33]} 17. b3 {[%clk 0:02:36]}  Bg7 {[%clk 0:02:28]} 18. Rac1 {[%clk 0:02:32]}  Rhd8 {[%clk 0:02:26]} 19. h4 {[%clk 0:02:16]}  a6 {[%clk 0:02:09]} 20. hxg5 {[%clk 0:02:15]}  hxg5 {[%clk 0:02:10]} 21. Bc7 {[%clk 0:02:14]}  Rh8 {[%clk 0:01:47]} 22. Bb6 {[%clk 0:02:13]}  Rd2 {[%clk 0:01:28]} 23. Be3 {[%clk 0:02:07]}  Rb2 {[%clk 0:01:05]} 24. Bxg5 {[%clk 0:02:07]}  b5 {[%clk 0:00:36]} 25. Bf1 {[%clk 0:02:05]}  Kd7 {[%clk 0:00:17]} 26. Red1+ {[%clk 0:01:51]}  Kc7 {[%clk 0:00:16]} 27. Nxb5+ {[%clk 0:01:46]}  axb5 {[%clk 0:00:13]} 28. Bxb5 {[%clk 0:01:47]}  Ng4 {[%clk 0:00:12]} 29. Rxc6+ {[%clk 0:01:39]}  Kb8 {[%clk 0:00:12]} 30. Rb6+ {[%clk 0:01:33]}  Kc7 {[%clk 0:00:13]} 31. Rxe6 {[%clk 0:01:33]}  Nxf2 {[%clk 0:00:11]} 32. Bf4+ {[%clk 0:01:14]}  Kb7 {[%clk 0:00:05]} 33. Rd7+ {[%clk 0:01:04]}  Kc8 {[%clk 0:00:06]} 34. Rd2 {[%clk 0:00:48]}  Rxd2 {[%clk 0:00:03]} 35. Bxd2 {[%clk 0:00:49]}  Bd4 {[%clk 0:00:03]} 36. Kf1 {[%clk 0:00:44]}  Ng4 {[%clk 0:00:02]} 37. Rxe4 {[%clk 0:00:40]}  Rf8+ {[%clk 0:00:01]} 38. Ke1 {[%clk 0:00:39]}  Bf2+ {[%clk 0:00:02]} 39. Ke2 {[%clk 0:00:39]} 1-0


[Site "https://www.chess.com"]

[Event "Titled Tuesday Blitz May 17 Late 2022"]
[White "Rozovsky, Daniel"]
[Black "Maghsoodloo, Parham"]
[WhiteFideId "2020904"]
[BlackFideId "12539929"]
[WhiteElo "2626"]
[BlackElo "2630"]
[Result "1-0"]
[Round "06"]
[TimeControl "180+1"]
[Date "2022.05.17"]
[WhiteClock "0:00:15"]
[BlackClock "0:00:09"]

1. e4 {[%clk 0:03:00]}  e5 {[%clk 0:03:00]} 2. Nf3 {[%clk 0:03:00]}  Nc6 {[%clk 0:03:00]} 3. Bb5 {[%clk 0:03:00]}  a6 {[%clk 0:03:01]} 4. Ba4 {[%clk 0:03:00]}  Nf6 {[%clk 0:03:01]} 5. O-O {[%clk 0:03:01]}  b5 {[%clk 0:03:02]} 6. Bb3 {[%clk 0:03:00]}  Bc5 {[%clk 0:03:02]} 7. d3 {[%clk 0:02:59]}  h6 {[%clk 0:03:00]} 8. c3 {[%clk 0:02:59]}  d6 {[%clk 0:02:58]} 9. h3 {[%clk 0:02:59]}  O-O {[%clk 0:02:57]} 10. Nbd2 {[%clk 0:03:00]}  a5 {[%clk 0:02:53]} 11. a4 {[%clk 0:02:56]}  b4 {[%clk 0:02:48]} 12. Nc4 {[%clk 0:02:43]}  Re8 {[%clk 0:02:39]} 13. Be3 {[%clk 0:02:41]}  Bxe3 {[%clk 0:02:36]} 14. Nxe3 {[%clk 0:02:42]}  Rb8 {[%clk 0:02:35]} 15. Nh4 {[%clk 0:02:26]}  Be6 {[%clk 0:02:34]} 16. Bxe6 {[%clk 0:02:16]}  fxe6 {[%clk 0:02:32]} 17. g3 {[%clk 0:02:05]}  Nd7 {[%clk 0:02:30]} 18. Nhg2 {[%clk 0:02:02]}  Nc5 {[%clk 0:02:29]} 19. f4 {[%clk 0:02:00]}  d5 {[%clk 0:02:14]} 20. fxe5 {[%clk 0:01:47]}  d4 {[%clk 0:02:13]} 21. cxd4 {[%clk 0:01:35]}  Qxd4 {[%clk 0:02:10]} 22. Qh5 {[%clk 0:01:25]}  Nxe5 {[%clk 0:02:02]} 23. Kh2 {[%clk 0:01:23]}  Rf8 {[%clk 0:01:35]} 24. Ng4 {[%clk 0:01:09]}  Nxg4+ {[%clk 0:01:30]} 25. hxg4 {[%clk 0:01:06]}  Qxb2 {[%clk 0:01:28]} 26. Qxc5 {[%clk 0:00:58]}  b3 {[%clk 0:01:22]} 27. Rab1 {[%clk 0:00:36]}  Qa2 {[%clk 0:01:15]} 28. Qc4 {[%clk 0:00:34]}  Rfe8 {[%clk 0:00:59]} 29. Kh3 {[%clk 0:00:33]}  Rb4 {[%clk 0:00:54]} 30. Qc3 {[%clk 0:00:30]}  Qxa4 {[%clk 0:00:50]} 31. Nf4 {[%clk 0:00:30]}  Qb5 {[%clk 0:00:46]} 32. Nh5 {[%clk 0:00:26]}  Re7 {[%clk 0:00:46]} 33. Rf2 {[%clk 0:00:19]}  a4 {[%clk 0:00:41]} 34. Rbf1 {[%clk 0:00:18]}  e5 {[%clk 0:00:34]} 35. Rf8+ {[%clk 0:00:17]}  Kh7 {[%clk 0:00:35]} 36. Qd2 {[%clk 0:00:16]}  b2 {[%clk 0:00:19]} 37. Nf6+ {[%clk 0:00:16]}  Kg6 {[%clk 0:00:19]} 38. Qf2 {[%clk 0:00:16]}  Qd7 {[%clk 0:00:09]} 39. Nxd7 {[%clk 0:00:15]} 1-0


[Site "https://www.chess.com"]

[Event "Titled Tuesday Blitz May 17 Late 2022"]
[White "Rustemov, Alexander"]
[Black "Urbina Perez, Juan Antonio"]
[WhiteFideId "4119002"]
[BlackFideId "2217368"]
[WhiteElo "2794"]
[BlackElo "2192"]
[Result "1-0"]
[Round "06"]
[TimeControl "180+1"]
[Date "2022.05.17"]
[WhiteClock "0:01:25"]
[BlackClock "0:00:17"]

1. d4 {[%clk 0:03:00]}  d5 {[%clk 0:02:59]} 2. c4 {[%clk 0:03:00]}  c6 {[%clk 0:03:00]} 3. Nc3 {[%clk 0:03:00]}  Nf6 {[%clk 0:03:00]} 4. e3 {[%clk 0:03:01]}  a6 {[%clk 0:02:58]} 5. Qc2 {[%clk 0:03:00]}  g6 {[%clk 0:02:58]} 6. Nf3 {[%clk 0:03:00]}  Bf5 {[%clk 0:02:55]} 7. Qb3 {[%clk 0:02:56]}  Ra7 {[%clk 0:02:49]} 8. Bd2 {[%clk 0:02:50]}  Bg7 {[%clk 0:02:49]} 9. Be2 {[%clk 0:02:47]}  O-O {[%clk 0:02:49]} 10. O-O {[%clk 0:02:47]}  Ne4 {[%clk 0:02:38]} 11. Rfd1 {[%clk 0:02:28]}  Nxd2 {[%clk 0:02:10]} 12. Rxd2 {[%clk 0:02:27]}  dxc4 {[%clk 0:02:11]} 13. Bxc4 {[%clk 0:02:26]}  b5 {[%clk 0:02:11]} 14. Bd3 {[%clk 0:02:16]}  Bxd3 {[%clk 0:02:07]} 15. Rxd3 {[%clk 0:02:16]}  Nd7 {[%clk 0:02:07]} 16. Ne4 {[%clk 0:02:13]}  Qb6 {[%clk 0:01:56]} 17. Rc1 {[%clk 0:02:11]}  Rc7 {[%clk 0:01:50]} 18. Rdc3 {[%clk 0:02:10]}  Rfc8 {[%clk 0:01:47]} 19. Qc2 {[%clk 0:01:59]}  c5 {[%clk 0:01:09]} 20. Nxc5 {[%clk 0:01:56]}  Nxc5 {[%clk 0:01:06]} 21. Rxc5 {[%clk 0:01:55]}  Rxc5 {[%clk 0:01:00]} 22. dxc5 {[%clk 0:01:56]}  Qa5 {[%clk 0:00:54]} 23. b3 {[%clk 0:01:46]}  b4 {[%clk 0:00:53]} 24. Nd4 {[%clk 0:01:36]}  Qc7 {[%clk 0:00:38]} 25. Qc4 {[%clk 0:01:29]}  a5 {[%clk 0:00:38]} 26. h3 {[%clk 0:01:28]}  e6 {[%clk 0:00:33]} 27. c6 {[%clk 0:01:27]}  e5 {[%clk 0:00:28]} 28. Nb5 {[%clk 0:01:26]}  Qb6 {[%clk 0:00:19]} 29. Nd6 {[%clk 0:01:25]}  Rc7 {[%clk 0:00:17]} 30. Nxf7 {[%clk 0:01:25]} 1-0


[Site "https://www.chess.com"]

[Event "Titled Tuesday Blitz May 17 Late 2022"]
[White "Rychagov, Andrey"]
[Black "Skytte, Rasmus"]
[WhiteFideId "4119932"]
[BlackFideId "1404210"]
[WhiteElo "2500"]
[BlackElo "2430"]
[Result "1-0"]
[Round "06"]
[TimeControl "180+1"]
[Date "2022.05.17"]
[WhiteClock "0:00:27"]
[BlackClock "0:00:19"]

1. d4 {[%clk 0:03:00]}  Nf6 {[%clk 0:02:56]} 2. c4 {[%clk 0:03:00]}  c5 {[%clk 0:02:55]} 3. d5 {[%clk 0:03:00]}  b5 {[%clk 0:02:55]} 4. cxb5 {[%clk 0:03:00]}  a6 {[%clk 0:02:56]} 5. bxa6 {[%clk 0:03:00]}  g6 {[%clk 0:02:55]} 6. Nc3 {[%clk 0:03:00]}  Bg7 {[%clk 0:02:55]} 7. e4 {[%clk 0:03:00]}  Qa5 {[%clk 0:02:53]} 8. Bd2 {[%clk 0:02:59]}  O-O {[%clk 0:02:47]} 9. Be2 {[%clk 0:02:58]}  Bxa6 {[%clk 0:02:45]} 10. e5 {[%clk 0:02:58]}  Ne8 {[%clk 0:02:42]} 11. Nf3 {[%clk 0:02:58]}  d6 {[%clk 0:02:38]} 12. e6 {[%clk 0:02:58]}  f5 {[%clk 0:02:35]} 13. O-O {[%clk 0:02:55]}  Nf6 {[%clk 0:02:33]} 14. Ne4 {[%clk 0:02:33]}  Qb6 {[%clk 0:02:29]} 15. Nxf6+ {[%clk 0:02:32]}  Bxf6 {[%clk 0:02:27]} 16. Bc3 {[%clk 0:02:33]}  Bxe2 {[%clk 0:02:22]} 17. Qxe2 {[%clk 0:02:32]}  Na6 {[%clk 0:02:21]} 18. Nd2 {[%clk 0:02:20]}  Nc7 {[%clk 0:02:14]} 19. Nc4 {[%clk 0:02:19]}  Qb7 {[%clk 0:02:13]} 20. Rfd1 {[%clk 0:02:16]}  Bxc3 {[%clk 0:01:49]} 21. bxc3 {[%clk 0:02:15]}  Ra4 {[%clk 0:01:47]} 22. Ne3 {[%clk 0:02:03]}  f4 {[%clk 0:01:36]} 23. Qc2 {[%clk 0:01:31]}  fxe3 {[%clk 0:01:20]} 24. Qxa4 {[%clk 0:01:30]}  exf2+ {[%clk 0:01:20]} 25. Kh1 {[%clk 0:01:27]}  Qxd5 {[%clk 0:01:17]} 26. Qc2 {[%clk 0:01:01]}  Nxe6 {[%clk 0:01:06]} 27. Rf1 {[%clk 0:01:00]}  Qf5 {[%clk 0:00:54]} 28. Qxf5 {[%clk 0:00:59]}  Rxf5 {[%clk 0:00:54]} 29. a4 {[%clk 0:00:54]}  Nc7 {[%clk 0:00:47]} 30. a5 {[%clk 0:00:52]}  Na6 {[%clk 0:00:47]} 31. Ra2 {[%clk 0:00:51]}  c4 {[%clk 0:00:41]} 32. Rfxf2 {[%clk 0:00:42]}  Rb5 {[%clk 0:00:41]} 33. h3 {[%clk 0:00:42]}  Kg7 {[%clk 0:00:40]} 34. Rf4 {[%clk 0:00:41]}  Rc5 {[%clk 0:00:38]} 35. Kh2 {[%clk 0:00:38]}  e5 {[%clk 0:00:37]} 36. Rf1 {[%clk 0:00:33]}  d5 {[%clk 0:00:36]} 37. Rb1 {[%clk 0:00:33]}  d4 {[%clk 0:00:36]} 38. Rb6 {[%clk 0:00:30]}  Nc7 {[%clk 0:00:33]} 39. a6 {[%clk 0:00:28]}  dxc3 {[%clk 0:00:29]} 40. a7 {[%clk 0:00:28]}  Rd5 {[%clk 0:00:19]} 41. Rb7 {[%clk 0:00:27]} 1-0


[Site "https://www.chess.com"]

[Event "Titled Tuesday Blitz May 17 Late 2022"]
[White "Santos Ruiz, Miguel"]
[Black "Sadhwani, Raunak"]
[WhiteFideId "22291482"]
[BlackFideId "35093487"]
[WhiteElo "2486"]
[BlackElo "2616"]
[Result "0-1"]
[Round "06"]
[TimeControl "180+1"]
[Date "2022.05.17"]
[WhiteClock "0:00:04"]
[BlackClock "0:00:10"]

1. c4 {[%clk 0:03:00]}  e5 {[%clk 0:02:58]} 2. Nf3 {[%clk 0:02:59]}  Nc6 {[%clk 0:02:59]} 3. Nc3 {[%clk 0:02:59]}  f5 {[%clk 0:02:55]} 4. d4 {[%clk 0:02:56]}  e4 {[%clk 0:02:53]} 5. Ng5 {[%clk 0:02:56]}  Nf6 {[%clk 0:02:46]} 6. h4 {[%clk 0:02:37]}  Bb4 {[%clk 0:02:46]} 7. e3 {[%clk 0:02:11]}  Bxc3+ {[%clk 0:02:45]} 8. bxc3 {[%clk 0:02:11]}  O-O {[%clk 0:02:45]} 9. h5 {[%clk 0:02:04]}  h6 {[%clk 0:02:45]} 10. Nh3 {[%clk 0:02:03]}  Ne7 {[%clk 0:02:45]} 11. Nf4 {[%clk 0:02:03]}  d6 {[%clk 0:02:46]} 12. Be2 {[%clk 0:02:02]}  Qe8 {[%clk 0:02:44]} 13. c5 {[%clk 0:01:53]}  d5 {[%clk 0:02:30]} 14. c4 {[%clk 0:01:44]}  c6 {[%clk 0:02:29]} 15. Rb1 {[%clk 0:01:40]}  Kh7 {[%clk 0:02:25]} 16. Bd2 {[%clk 0:01:36]}  Qf7 {[%clk 0:02:23]} 17. Qa4 {[%clk 0:01:33]}  dxc4 {[%clk 0:02:13]} 18. Bxc4 {[%clk 0:01:26]}  Nfd5 {[%clk 0:02:13]} 19. Ba5 {[%clk 0:00:52]}  b5 {[%clk 0:01:59]} 20. Bxd5 {[%clk 0:00:41]}  Nxd5 {[%clk 0:01:59]} 21. Qb3 {[%clk 0:00:40]}  Be6 {[%clk 0:01:43]} 22. Nxe6 {[%clk 0:00:24]}  Qxe6 {[%clk 0:01:44]} 23. g3 {[%clk 0:00:24]}  Rf7 {[%clk 0:01:36]} 24. Rh4 {[%clk 0:00:24]}  Qf6 {[%clk 0:01:34]} 25. Rh1 {[%clk 0:00:22]}  Qg5 {[%clk 0:01:33]} 26. Qd1 {[%clk 0:00:20]}  Re8 {[%clk 0:01:16]} 27. Qd2 {[%clk 0:00:19]}  Rd7 {[%clk 0:01:13]} 28. Kd1 {[%clk 0:00:18]}  Nf6 {[%clk 0:01:10]} 29. Kc2 {[%clk 0:00:17]}  Nxh5 {[%clk 0:01:09]} 30. a4 {[%clk 0:00:15]}  a6 {[%clk 0:01:09]} 31. axb5 {[%clk 0:00:15]}  axb5 {[%clk 0:01:10]} 32. Ra1 {[%clk 0:00:16]}  Nf6 {[%clk 0:01:09]} 33. Bb4 {[%clk 0:00:16]}  Nd5 {[%clk 0:01:06]} 34. Ra6 {[%clk 0:00:16]}  Rc8 {[%clk 0:01:06]} 35. Rha1 {[%clk 0:00:16]}  Qg4 {[%clk 0:01:03]} 36. Kb3 {[%clk 0:00:16]}  Qf3 {[%clk 0:01:02]} 37. Ra8 {[%clk 0:00:16]}  Rxa8 {[%clk 0:00:49]} 38. Rxa8 {[%clk 0:00:17]}  Qh1 {[%clk 0:00:49]} 39. Kb2 {[%clk 0:00:14]}  Qg1 {[%clk 0:00:47]} 40. Ba5 {[%clk 0:00:13]}  b4 {[%clk 0:00:46]} 41. Bb6 {[%clk 0:00:08]}  Nc3 {[%clk 0:00:40]} 42. Ra1 {[%clk 0:00:08]}  Qg2 {[%clk 0:00:38]} 43. Kb3 {[%clk 0:00:08]}  Nd5 {[%clk 0:00:35]} 44. Qe2 {[%clk 0:00:07]}  Rb7 {[%clk 0:00:30]} 45. Bd8 {[%clk 0:00:05]}  Nc3 {[%clk 0:00:23]} 46. Qc2 {[%clk 0:00:02]}  Qf3 {[%clk 0:00:21]} 47. Bb6 {[%clk 0:00:03]}  Nd5 {[%clk 0:00:21]} 48. Kc4 {[%clk 0:00:03]}  Nxb6+ {[%clk 0:00:20]} 49. cxb6 {[%clk 0:00:04]}  Rxb6 {[%clk 0:00:21]} 50. Kc5 {[%clk 0:00:05]}  Rb8 {[%clk 0:00:21]} 51. Kd6 {[%clk 0:00:05]}  b3 {[%clk 0:00:21]} 52. Qc5 {[%clk 0:00:05]}  b2 {[%clk 0:00:20]} 53. Rb1 {[%clk 0:00:04]}  Qxf2 {[%clk 0:00:21]} 54. Kc7 {[%clk 0:00:04]}  Qxg3+ {[%clk 0:00:20]} 55. Kd7 {[%clk 0:00:04]}  Qg6 {[%clk 0:00:19]} 56. Qe5 {[%clk 0:00:04]}  Rb7+ {[%clk 0:00:14]} 57. Kc8 {[%clk 0:00:04]}  Qf7 {[%clk 0:00:13]} 58. Qd6 {[%clk 0:00:04]}  Ra7 {[%clk 0:00:11]} 59. Kb8 {[%clk 0:00:04]}  Qb7# {[%clk 0:00:10]} 0-1


[Site "https://www.chess.com"]

[Event "Titled Tuesday Blitz May 17 Late 2022"]
[White "Shimanov, Aleksandr"]
[Black "Fedoseev, Vladimir"]
[WhiteFideId "4198603"]
[BlackFideId "24130737"]
[WhiteElo "2605"]
[BlackElo "2726"]
[Result "1-0"]
[Round "06"]
[TimeControl "180+1"]
[Date "2022.05.17"]
[WhiteClock "0:00:05"]
[BlackClock "0:00:08"]

1. b3 {[%clk 0:03:00]}  b6 {[%clk 0:02:51]} 2. e4 {[%clk 0:03:00]}  Bb7 {[%clk 0:02:51]} 3. Nc3 {[%clk 0:02:59]}  g6 {[%clk 0:02:50]} 4. d4 {[%clk 0:02:57]}  Bg7 {[%clk 0:02:50]} 5. Bb2 {[%clk 0:02:57]}  e6 {[%clk 0:02:44]} 6. Nf3 {[%clk 0:02:57]}  d6 {[%clk 0:02:41]} 7. Qd2 {[%clk 0:02:56]}  Nf6 {[%clk 0:02:39]} 8. Bd3 {[%clk 0:02:56]}  Nbd7 {[%clk 0:02:30]} 9. O-O {[%clk 0:02:52]}  e5 {[%clk 0:02:29]} 10. d5 {[%clk 0:02:41]}  O-O {[%clk 0:02:27]} 11. Ne2 {[%clk 0:02:38]}  h5 {[%clk 0:01:47]} 12. b4 {[%clk 0:02:31]}  Nh7 {[%clk 0:01:35]} 13. c4 {[%clk 0:01:47]}  f5 {[%clk 0:01:35]} 14. g3 {[%clk 0:01:24]}  Bc8 {[%clk 0:01:20]} 15. Nh4 {[%clk 0:01:19]}  Ng5 {[%clk 0:01:15]} 16. exf5 {[%clk 0:01:11]}  gxf5 {[%clk 0:01:10]} 17. f4 {[%clk 0:01:10]}  Ne4 {[%clk 0:01:04]} 18. Bxe4 {[%clk 0:01:05]}  fxe4 {[%clk 0:01:04]} 19. f5 {[%clk 0:01:05]}  Nf6 {[%clk 0:01:02]} 20. Nc3 {[%clk 0:01:00]}  a5 {[%clk 0:00:53]} 21. b5 {[%clk 0:00:58]}  Ng4 {[%clk 0:00:47]} 22. Nxe4 {[%clk 0:00:51]}  Bh6 {[%clk 0:00:47]} 23. Qe2 {[%clk 0:00:51]}  Bg5 {[%clk 0:00:37]} 24. h3 {[%clk 0:00:35]}  Bxh4 {[%clk 0:00:30]} 25. hxg4 {[%clk 0:00:35]}  Bg5 {[%clk 0:00:28]} 26. Bc1 {[%clk 0:00:30]}  Bxc1 {[%clk 0:00:25]} 27. Raxc1 {[%clk 0:00:31]}  Qe7 {[%clk 0:00:25]} 28. Kg2 {[%clk 0:00:21]}  Qg7 {[%clk 0:00:23]} 29. f6 {[%clk 0:00:12]}  Qxg4 {[%clk 0:00:17]} 30. Qxg4+ {[%clk 0:00:07]}  Bxg4 {[%clk 0:00:18]} 31. Ng5 {[%clk 0:00:05]}  Kh8 {[%clk 0:00:18]} 32. Rce1 {[%clk 0:00:03]}  Rg8 {[%clk 0:00:16]} 33. Ne6 {[%clk 0:00:03]}  Rg6 {[%clk 0:00:16]} 34. f7 {[%clk 0:00:02]}  Bxe6 {[%clk 0:00:10]} 35. dxe6 {[%clk 0:00:03]}  h4 {[%clk 0:00:08]} 36. f8=Q+ {[%clk 0:00:03]}  Rxf8 {[%clk 0:00:07]} 37. Rxf8+ {[%clk 0:00:04]}  Kg7 {[%clk 0:00:07]} 38. e7 {[%clk 0:00:04]}  Rxg3+ {[%clk 0:00:06]} 39. Kh2 {[%clk 0:00:05]}  Rc3 {[%clk 0:00:07]} 40. Rg1+ {[%clk 0:00:05]}  Kh7 {[%clk 0:00:07]} 41. e8=Q {[%clk 0:00:05]}  Rc2+ {[%clk 0:00:08]} 42. Kh3 {[%clk 0:00:05]} 1-0


[Site "https://www.chess.com"]

[Event "Titled Tuesday Blitz May 17 Late 2022"]
[White "Sismeiro, Miguel"]
[Black "Bryakin, Mikhail"]
[WhiteFideId "1950975"]
[BlackFideId "4165314"]
[WhiteElo "2031"]
[BlackElo "2417"]
[Result "0-1"]
[Round "06"]
[TimeControl "180+1"]
[Date "2022.05.17"]
[WhiteClock "0:00:11"]
[BlackClock "0:01:13"]

1. Nf3 {[%clk 0:03:00]}  c5 {[%clk 0:02:57]} 2. e3 {[%clk 0:02:58]}  Nc6 {[%clk 0:02:57]} 3. d4 {[%clk 0:02:58]}  cxd4 {[%clk 0:02:57]} 4. exd4 {[%clk 0:02:55]}  d5 {[%clk 0:02:58]} 5. c3 {[%clk 0:02:53]}  Nf6 {[%clk 0:02:56]} 6. Bf4 {[%clk 0:02:53]}  Bg4 {[%clk 0:02:56]} 7. Nbd2 {[%clk 0:02:53]}  e6 {[%clk 0:02:56]} 8. Bd3 {[%clk 0:02:52]}  Bd6 {[%clk 0:02:56]} 9. Bxd6 {[%clk 0:02:47]}  Qxd6 {[%clk 0:02:57]} 10. O-O {[%clk 0:02:48]}  O-O {[%clk 0:02:57]} 11. Qb3 {[%clk 0:02:47]}  b6 {[%clk 0:02:56]} 12. Rfe1 {[%clk 0:02:46]}  Bf5 {[%clk 0:02:52]} 13. Bxf5 {[%clk 0:02:31]}  exf5 {[%clk 0:02:53]} 14. Ne5 {[%clk 0:02:31]}  Ne4 {[%clk 0:02:53]} 15. Nxc6 {[%clk 0:02:15]}  Qxc6 {[%clk 0:02:54]} 16. Nf1 {[%clk 0:02:13]}  g6 {[%clk 0:02:50]} 17. f3 {[%clk 0:02:11]}  Nf6 {[%clk 0:02:47]} 18. Re5 {[%clk 0:02:09]}  Rfd8 {[%clk 0:02:42]} 19. Rae1 {[%clk 0:02:08]}  Rd7 {[%clk 0:02:43]} 20. Ne3 {[%clk 0:02:00]}  Rad8 {[%clk 0:02:42]} 21. Nc2 {[%clk 0:01:58]}  Kg7 {[%clk 0:02:41]} 22. Nb4 {[%clk 0:01:58]}  Qd6 {[%clk 0:02:41]} 23. Nd3 {[%clk 0:01:52]}  h5 {[%clk 0:02:39]} 24. h4 {[%clk 0:01:51]}  Rc7 {[%clk 0:02:36]} 25. Qb4 {[%clk 0:01:24]}  a5 {[%clk 0:02:31]} 26. Qxd6 {[%clk 0:01:21]}  Rxd6 {[%clk 0:02:32]} 27. Nf4 {[%clk 0:01:21]}  Rdd7 {[%clk 0:02:30]} 28. Kf2 {[%clk 0:01:18]}  b5 {[%clk 0:02:29]} 29. Nd3 {[%clk 0:01:14]}  Rd6 {[%clk 0:02:24]} 30. a3 {[%clk 0:01:11]}  Rb6 {[%clk 0:02:13]} 31. Re7 {[%clk 0:01:10]}  Rbb7 {[%clk 0:02:10]} 32. Rxc7 {[%clk 0:01:09]}  Rxc7 {[%clk 0:02:11]} 33. Re5 {[%clk 0:01:08]}  Kf8 {[%clk 0:02:11]} 34. Nf4 {[%clk 0:01:04]}  Re7 {[%clk 0:02:08]} 35. Ke3 {[%clk 0:01:01]}  Rd7 {[%clk 0:02:04]} 36. Kd2 {[%clk 0:01:01]}  Rd6 {[%clk 0:02:02]} 37. Nd3 {[%clk 0:00:59]}  Re6 {[%clk 0:02:00]} 38. Nc5 {[%clk 0:00:55]}  Rb6 {[%clk 0:01:58]} 39. b4 {[%clk 0:00:52]}  a4 {[%clk 0:01:57]} 40. Nd3 {[%clk 0:00:46]}  Rd6 {[%clk 0:01:53]} 41. Ke3 {[%clk 0:00:42]}  Nd7 {[%clk 0:01:50]} 42. Kf4 {[%clk 0:00:42]}  Nxe5 {[%clk 0:01:50]} 43. Kxe5 {[%clk 0:00:43]}  Rc6 {[%clk 0:01:43]} 44. Nc5 {[%clk 0:00:43]}  Ke7 {[%clk 0:01:41]} 45. Kxd5 {[%clk 0:00:43]}  Rd6+ {[%clk 0:01:36]} 46. Ke5 {[%clk 0:00:42]}  f6+ {[%clk 0:01:37]} 47. Kf4 {[%clk 0:00:43]}  Rd8 {[%clk 0:01:38]} 48. Ke3 {[%clk 0:00:39]}  Rc8 {[%clk 0:01:38]} 49. Kd3 {[%clk 0:00:39]}  Kd6 {[%clk 0:01:38]} 50. c4 {[%clk 0:00:39]}  Kc6 {[%clk 0:01:33]} 51. d5+ {[%clk 0:00:35]}  Kd6 {[%clk 0:01:34]} 52. Kd4 {[%clk 0:00:31]}  bxc4 {[%clk 0:01:32]} 53. Kxc4 {[%clk 0:00:32]}  Re8 {[%clk 0:01:33]} 54. Nxa4 {[%clk 0:00:29]}  g5 {[%clk 0:01:33]} 55. Nc3 {[%clk 0:00:22]}  gxh4 {[%clk 0:01:32]} 56. Nb5+ {[%clk 0:00:23]}  Kd7 {[%clk 0:01:32]} 57. Nd4 {[%clk 0:00:23]}  Rg8 {[%clk 0:01:33]} 58. Nxf5 {[%clk 0:00:19]}  Rxg2 {[%clk 0:01:33]} 59. Nxh4 {[%clk 0:00:20]}  Rh2 {[%clk 0:01:33]} 60. Ng6 {[%clk 0:00:14]}  h4 {[%clk 0:01:33]} 61. Kd3 {[%clk 0:00:15]}  h3 {[%clk 0:01:33]} 62. Nf4 {[%clk 0:00:13]}  Rh1 {[%clk 0:01:34]} 63. Nxh3 {[%clk 0:00:11]}  Rxh3 {[%clk 0:01:34]} 64. Ke4 {[%clk 0:00:11]}  Rh2 {[%clk 0:01:34]} 65. Kf5 {[%clk 0:00:11]}  Ra2 {[%clk 0:01:34]} 66. Kxf6 {[%clk 0:00:11]}  Rxa3 {[%clk 0:01:35]} 67. f4 {[%clk 0:00:12]}  Rb3 {[%clk 0:01:36]} 68. f5 {[%clk 0:00:12]}  Rxb4 {[%clk 0:01:36]} 69. Kg7 {[%clk 0:00:12]}  Rg4+ {[%clk 0:01:36]} 70. Kf7 {[%clk 0:00:13]}  Rg5 {[%clk 0:01:14]} 71. f6 {[%clk 0:00:12]}  Rxd5 {[%clk 0:01:13]} 72. Kg7 {[%clk 0:00:10]}  Ke6 {[%clk 0:01:11]} 73. f7 {[%clk 0:00:10]}  Rd7 {[%clk 0:01:11]} 74. Kg8 {[%clk 0:00:09]}  Rxf7 {[%clk 0:01:12]} 75. Kh8 {[%clk 0:00:10]}  Kf6 {[%clk 0:01:13]} 76. Kg8 {[%clk 0:00:11]}  Kg6 {[%clk 0:01:13]} 0-1


[Site "https://www.chess.com"]

[Event "Titled Tuesday Blitz May 17 Late 2022"]
[White "Suleymanli, Aydin"]
[Black "Solon, Nathan"]
[WhiteFideId "13413937"]
[BlackFideId "2017229"]
[WhiteElo "2481"]
[BlackElo "2581"]
[Result "1-0"]
[Round "06"]
[TimeControl "180+1"]
[Date "2022.05.17"]
[WhiteClock "0:00:05"]
[BlackClock "0:00:08"]

1. d4 {[%clk 0:03:00]}  d5 {[%clk 0:02:59]} 2. Bg5 {[%clk 0:02:56]}  f6 {[%clk 0:02:57]} 3. Bh4 {[%clk 0:02:55]}  Nh6 {[%clk 0:02:56]} 4. e3 {[%clk 0:02:14]}  Nf5 {[%clk 0:02:55]} 5. Bd3 {[%clk 0:02:12]}  h5 {[%clk 0:02:36]} 6. Bxf5 {[%clk 0:01:22]}  Bxf5 {[%clk 0:02:36]} 7. f3 {[%clk 0:01:21]}  c5 {[%clk 0:02:31]} 8. c3 {[%clk 0:01:16]}  Nc6 {[%clk 0:02:31]} 9. Ne2 {[%clk 0:01:12]}  Qb6 {[%clk 0:02:28]} 10. Qb3 {[%clk 0:01:00]}  c4 {[%clk 0:02:24]} 11. Qxb6 {[%clk 0:01:00]}  axb6 {[%clk 0:02:25]} 12. a3 {[%clk 0:00:59]}  b5 {[%clk 0:02:18]} 13. Nd2 {[%clk 0:00:59]}  e6 {[%clk 0:02:07]} 14. e4 {[%clk 0:00:57]}  Bh7 {[%clk 0:02:07]} 15. O-O {[%clk 0:00:40]}  g5 {[%clk 0:02:04]} 16. Bf2 {[%clk 0:00:38]}  Kd7 {[%clk 0:01:55]} 17. Be3 {[%clk 0:00:32]}  Bd6 {[%clk 0:01:50]} 18. f4 {[%clk 0:00:27]}  g4 {[%clk 0:01:39]} 19. e5 {[%clk 0:00:25]}  Be7 {[%clk 0:01:37]} 20. Rae1 {[%clk 0:00:18]}  Bd3 {[%clk 0:01:29]} 21. exf6 {[%clk 0:00:18]}  Bxf6 {[%clk 0:01:29]} 22. Rf2 {[%clk 0:00:17]}  h4 {[%clk 0:01:24]} 23. f5 {[%clk 0:00:18]}  Bxf5 {[%clk 0:01:20]} 24. Nf4 {[%clk 0:00:18]}  Raf8 {[%clk 0:01:07]} 25. Nxd5 {[%clk 0:00:15]}  exd5 {[%clk 0:01:08]} 26. Rxf5 {[%clk 0:00:15]}  Ne7 {[%clk 0:00:59]} 27. Rf2 {[%clk 0:00:15]}  Bg7 {[%clk 0:00:53]} 28. Bg5 {[%clk 0:00:14]}  Ng6 {[%clk 0:00:49]} 29. Rfe2 {[%clk 0:00:14]}  Bf6 {[%clk 0:00:41]} 30. Bxf6 {[%clk 0:00:10]}  Rxf6 {[%clk 0:00:42]} 31. Nf1 {[%clk 0:00:10]}  Kd6 {[%clk 0:00:36]} 32. g3 {[%clk 0:00:06]}  Rhf8 {[%clk 0:00:33]} 33. Ne3 {[%clk 0:00:05]}  hxg3 {[%clk 0:00:31]} 34. hxg3 {[%clk 0:00:06]}  Rf3 {[%clk 0:00:30]} 35. Kg2 {[%clk 0:00:07]}  R3f7 {[%clk 0:00:10]} 36. Nxg4 {[%clk 0:00:07]}  Rg7 {[%clk 0:00:11]} 37. Re6+ {[%clk 0:00:07]}  Kc7 {[%clk 0:00:12]} 38. Rf6 {[%clk 0:00:03]}  Nh4+ {[%clk 0:00:09]} 39. Kh3 {[%clk 0:00:02]}  Rxf6 {[%clk 0:00:07]} 40. Nxf6 {[%clk 0:00:03]}  Nf5 {[%clk 0:00:07]} 41. Ne8+ {[%clk 0:00:03]}  Kc6 {[%clk 0:00:07]} 42. Nxg7 {[%clk 0:00:04]}  Nxg7 {[%clk 0:00:08]} 43. Kg4 {[%clk 0:00:05]} 1-0


[Site "https://www.chess.com"]